[Event "Titled Tuesday Blitz December 06 Late 2022"]
[White "Cuevas Araya, Walter"]
[Black "D`Arruda, Ricardo D."]
[WhiteFideId "3405028"]
[BlackFideId "100692"]
[WhiteElo "1957"]
[BlackElo "2453"]
[Result "1/2-1/2"]
[Round "10"]
[TimeControl "180+1"]
[Date "2022.12.07"]
[WhiteClock "0:00:29"]
[BlackClock "0:00:08"]

1. e4 {[%clk 0:03:00]}  c5 {[%clk 0:02:44]} 2. b4 {[%clk 0:03:00]}  cxb4 {[%clk 0:02:44]} 3. a3 {[%clk 0:03:00]}  bxa3 {[%clk 0:02:43]} 4. Bxa3 {[%clk 0:03:00]}  e6 {[%clk 0:02:44]} 5. Bxf8 {[%clk 0:03:00]}  Kxf8 {[%clk 0:02:45]} 6. d4 {[%clk 0:03:00]}  d5 {[%clk 0:02:45]} 7. e5 {[%clk 0:03:00]}  g6 {[%clk 0:02:44]} 8. Nf3 {[%clk 0:02:59]}  Kg7 {[%clk 0:02:44]} 9. h4 {[%clk 0:02:58]}  h6 {[%clk 0:02:43]} 10. Bd3 {[%clk 0:02:57]}  Ne7 {[%clk 0:02:42]} 11. Qd2 {[%clk 0:02:54]}  Nbc6 {[%clk 0:02:42]} 12. h5 {[%clk 0:02:51]}  g5 {[%clk 0:02:40]} 13. Nc3 {[%clk 0:02:43]}  Nf5 {[%clk 0:02:33]} 14. Nb5 {[%clk 0:02:40]}  Qb6 {[%clk 0:02:20]} 15. Bxf5 {[%clk 0:02:34]}  exf5 {[%clk 0:02:19]} 16. Nd6 {[%clk 0:02:32]}  f6 {[%clk 0:02:02]} 17. O-O {[%clk 0:02:23]}  Qc7 {[%clk 0:01:55]} 18. Rfe1 {[%clk 0:02:11]}  Bd7 {[%clk 0:01:44]} 19. exf6+ {[%clk 0:01:53]}  Kxf6 {[%clk 0:01:43]} 20. Nb5 {[%clk 0:01:53]}  Qf4 {[%clk 0:01:38]} 21. Qxf4 {[%clk 0:01:45]}  gxf4 {[%clk 0:01:38]} 22. Ne5 {[%clk 0:01:45]}  Nxe5 {[%clk 0:01:32]} 23. dxe5+ {[%clk 0:01:44]}  Ke7 {[%clk 0:01:32]} 24. Nc7 {[%clk 0:01:38]}  Rac8 {[%clk 0:01:14]} 25. Nxd5+ {[%clk 0:01:37]}  Kf7 {[%clk 0:01:13]} 26. Nxf4 {[%clk 0:01:33]}  Bc6 {[%clk 0:01:04]} 27. Rxa7 {[%clk 0:01:31]}  Rhd8 {[%clk 0:01:02]} 28. c4 {[%clk 0:01:31]}  Rd4 {[%clk 0:01:01]} 29. e6+ {[%clk 0:01:25]}  Kf6 {[%clk 0:01:01]} 30. g3 {[%clk 0:01:17]}  Rxc4 {[%clk 0:00:59]} 31. e7 {[%clk 0:01:17]}  Re4 {[%clk 0:00:54]} 32. Rxe4 {[%clk 0:01:15]}  fxe4 {[%clk 0:00:55]} 33. Ng6 {[%clk 0:01:11]}  Kg5 {[%clk 0:00:47]} 34. Ne5 {[%clk 0:01:07]}  Bd5 {[%clk 0:00:42]} 35. Ra5 {[%clk 0:01:04]}  Be6 {[%clk 0:00:22]} 36. Nc6+ {[%clk 0:00:55]}  Kf6 {[%clk 0:00:19]} 37. Nd8 {[%clk 0:00:48]}  Kxe7 {[%clk 0:00:19]} 38. Nxb7 {[%clk 0:00:47]}  Bg4 {[%clk 0:00:15]} 39. Re5+ {[%clk 0:00:47]}  Kd7 {[%clk 0:00:12]} 40. Rxe4 {[%clk 0:00:47]}  Bf3 {[%clk 0:00:13]} 41. Re1 {[%clk 0:00:45]}  Bxb7 {[%clk 0:00:11]} 42. Kh2 {[%clk 0:00:44]}  Bf3 {[%clk 0:00:11]} 43. Kh3 {[%clk 0:00:42]}  Rc4 {[%clk 0:00:10]} 44. Re3 {[%clk 0:00:40]}  Bg4+ {[%clk 0:00:10]} 45. Kg2 {[%clk 0:00:38]}  Be6 {[%clk 0:00:09]} 46. Re2 {[%clk 0:00:35]}  Kd6 {[%clk 0:00:10]} 47. f3 {[%clk 0:00:35]}  Bd5 {[%clk 0:00:10]} 48. g4 {[%clk 0:00:34]}  Rc3 {[%clk 0:00:10]} 49. Rf2 {[%clk 0:00:34]}  Ke5 {[%clk 0:00:10]} 50. Kg3 {[%clk 0:00:35]}  Kf6 {[%clk 0:00:10]} 51. Rf1 {[%clk 0:00:34]}  Kg5 {[%clk 0:00:09]} 52. Rf2 {[%clk 0:00:34]}  Rd3 {[%clk 0:00:09]} 53. Rf1 {[%clk 0:00:34]}  Be4 {[%clk 0:00:10]} 54. Kg2 {[%clk 0:00:29]}  Bd5 {[%clk 0:00:10]} 55. Kg3 {[%clk 0:00:29]}  Bc6 {[%clk 0:00:08]} 56. Rf2 {[%clk 0:00:29]}  Bd5 {[%clk 0:00:08]} 57. Rf1 {[%clk 0:00:29]} 1/2-1/2


[Site "https://www.chess.com"]

[Event "Titled Tuesday Blitz December 06 Late 2022"]
[White "Drozdowski, Kacper"]
[Black "Sarana, Alexey"]
[WhiteFideId "1136720"]
[BlackFideId "24133795"]
[WhiteElo "2486"]
[BlackElo "2708"]
[Result "0-1"]
[Round "10"]
[TimeControl "180+1"]
[Date "2022.12.06"]
[WhiteClock "0:00:09"]
[BlackClock "0:00:06"]

1. e4 {[%clk 0:03:00]}  c5 {[%clk 0:03:00]} 2. Nf3 {[%clk 0:03:00]}  d6 {[%clk 0:03:00]} 3. d4 {[%clk 0:03:01]}  cxd4 {[%clk 0:03:01]} 4. Nxd4 {[%clk 0:03:02]}  Nf6 {[%clk 0:03:02]} 5. f3 {[%clk 0:03:02]}  Nc6 {[%clk 0:03:01]} 6. c4 {[%clk 0:03:03]}  Qb6 {[%clk 0:03:02]} 7. Nc2 {[%clk 0:03:02]}  e6 {[%clk 0:03:01]} 8. Nc3 {[%clk 0:03:02]}  Be7 {[%clk 0:03:01]} 9. Rb1 {[%clk 0:03:01]}  O-O {[%clk 0:03:00]} 10. Be3 {[%clk 0:03:01]}  Qc7 {[%clk 0:03:01]} 11. Qd2 {[%clk 0:03:01]}  Rd8 {[%clk 0:03:00]} 12. Be2 {[%clk 0:03:01]}  d5 {[%clk 0:03:00]} 13. cxd5 {[%clk 0:02:58]}  exd5 {[%clk 0:03:01]} 14. exd5 {[%clk 0:02:53]}  Be6 {[%clk 0:03:01]} 15. Nb5 {[%clk 0:02:26]}  Qe5 {[%clk 0:02:40]} 16. d6 {[%clk 0:01:57]}  Bxd6 {[%clk 0:02:14]} 17. Nxd6 {[%clk 0:01:52]}  Rxd6 {[%clk 0:02:15]} 18. Qc3 {[%clk 0:01:50]}  Bxa2 {[%clk 0:02:13]} 19. Ra1 {[%clk 0:01:47]}  Qxc3+ {[%clk 0:01:44]} 20. bxc3 {[%clk 0:01:46]}  Be6 {[%clk 0:01:44]} 21. Kf2 {[%clk 0:01:21]}  Nd5 {[%clk 0:01:42]} 22. Bc5 {[%clk 0:01:20]}  Rdd8 {[%clk 0:01:40]} 23. Ra3 {[%clk 0:01:16]}  b6 {[%clk 0:01:35]} 24. Bb5 {[%clk 0:01:04]}  Rac8 {[%clk 0:01:32]} 25. Bxc6 {[%clk 0:01:00]}  Rxc6 {[%clk 0:01:33]} 26. Bd4 {[%clk 0:01:00]}  Rd7 {[%clk 0:01:30]} 27. g4 {[%clk 0:00:58]}  f6 {[%clk 0:01:28]} 28. h4 {[%clk 0:00:56]}  Rdc7 {[%clk 0:01:09]} 29. Re1 {[%clk 0:00:33]}  Kf7 {[%clk 0:01:09]} 30. g5 {[%clk 0:00:21]}  Nxc3 {[%clk 0:01:08]} 31. Bxc3 {[%clk 0:00:18]}  Rxc3 {[%clk 0:01:09]} 32. Rxc3 {[%clk 0:00:19]}  Rxc3 {[%clk 0:01:10]} 33. Nd4 {[%clk 0:00:19]}  Bd7 {[%clk 0:01:06]} 34. gxf6 {[%clk 0:00:20]}  Kxf6 {[%clk 0:01:01]} 35. Re4 {[%clk 0:00:20]}  a5 {[%clk 0:00:57]} 36. Rf4+ {[%clk 0:00:20]}  Ke7 {[%clk 0:00:57]} 37. Re4+ {[%clk 0:00:18]}  Kd6 {[%clk 0:00:57]} 38. Ne2 {[%clk 0:00:18]}  Rc2 {[%clk 0:00:56]} 39. Ke3 {[%clk 0:00:18]}  a4 {[%clk 0:00:56]} 40. Rd4+ {[%clk 0:00:18]}  Kc7 {[%clk 0:00:56]} 41. Nf4 {[%clk 0:00:17]}  Bc6 {[%clk 0:00:30]} 42. Ne6+ {[%clk 0:00:16]}  Kb8 {[%clk 0:00:31]} 43. Rb4 {[%clk 0:00:11]}  Kb7 {[%clk 0:00:08]} 44. Nd4 {[%clk 0:00:09]}  Ra2 {[%clk 0:00:06]} 45. h5 {[%clk 0:00:07]}  Be8 {[%clk 0:00:06]} 46. Nf5 {[%clk 0:00:04]}  Bxh5 {[%clk 0:00:05]} 47. Nxg7 {[%clk 0:00:04]}  Ka6 {[%clk 0:00:05]} 48. Nxh5 {[%clk 0:00:04]}  Ka5 {[%clk 0:00:06]} 49. Rb1 {[%clk 0:00:04]}  a3 {[%clk 0:00:06]} 50. Nf4 {[%clk 0:00:04]}  Rb2 {[%clk 0:00:06]} 51. Ra1 {[%clk 0:00:04]}  Ka4 {[%clk 0:00:05]} 52. Nd3 {[%clk 0:00:05]}  Rh2 {[%clk 0:00:05]} 53. Kd4 {[%clk 0:00:05]}  Rc2 {[%clk 0:00:04]} 54. f4 {[%clk 0:00:05]}  b5 {[%clk 0:00:04]} 55. f5 {[%clk 0:00:05]}  b4 {[%clk 0:00:03]} 56. Nc5+ {[%clk 0:00:05]}  Kb5 {[%clk 0:00:01]} 57. Nb3 {[%clk 0:00:06]}  Rc3 {[%clk 0:00:02]} 58. Nd2 {[%clk 0:00:05]}  Rc2 {[%clk 0:00:02]} 59. Kd3 {[%clk 0:00:05]}  Rc3+ {[%clk 0:00:03]} 60. Kd4 {[%clk 0:00:06]}  Rc6 {[%clk 0:00:02]} 61. Rb1 {[%clk 0:00:05]}  Ka4 {[%clk 0:00:02]} 62. Ra1 {[%clk 0:00:05]}  Rc2 {[%clk 0:00:02]} 63. Kd3 {[%clk 0:00:05]}  Rc6 {[%clk 0:00:03]} 64. Ne4 {[%clk 0:00:05]}  b3 {[%clk 0:00:02]} 65. f6 {[%clk 0:00:05]}  b2 {[%clk 0:00:02]} 66. Rf1 {[%clk 0:00:06]}  Rc8 {[%clk 0:00:03]} 67. Nc3+ {[%clk 0:00:05]}  Kb3 {[%clk 0:00:03]} 68. Nb1 {[%clk 0:00:06]}  a2 {[%clk 0:00:03]} 69. Nd2+ {[%clk 0:00:06]}  Ka3 {[%clk 0:00:04]} 70. Nc4+ {[%clk 0:00:06]}  Rxc4 {[%clk 0:00:04]} 71. Kxc4 {[%clk 0:00:06]}  b1=Q {[%clk 0:00:05]} 72. Rf3+ {[%clk 0:00:07]}  Ka4 {[%clk 0:00:05]} 73. f7 {[%clk 0:00:07]}  Qb4+ {[%clk 0:00:05]} 74. Kd5 {[%clk 0:00:08]}  a1=Q {[%clk 0:00:06]} 75. f8=Q {[%clk 0:00:08]}  Qad4+ {[%clk 0:00:06]} 76. Ke6 {[%clk 0:00:08]}  Qe4+ {[%clk 0:00:06]} 77. Kd7 {[%clk 0:00:08]}  Qbb7+ {[%clk 0:00:06]} 78. Kd8 {[%clk 0:00:08]}  Qed5+ {[%clk 0:00:06]} 79. Ke8 {[%clk 0:00:09]}  Qdd7# {[%clk 0:00:06]} 0-1


[Site "https://www.chess.com"]

[Event "Titled Tuesday Blitz December 06 Late 2022"]
[White "Erzhanov, Arman"]
[Black "Ferriz Barrios, Andres"]
[WhiteFideId "4138821"]
[BlackFideId "5104467"]
[WhiteElo "2176"]
[BlackElo "2263"]
[Result "1/2-1/2"]
[Round "10"]
[TimeControl "180+1"]
[Date "2022.12.07"]
[WhiteClock "0:00:09"]
[BlackClock "0:00:57"]

1. e4 {[%clk 0:03:00]}  e6 {[%clk 0:02:55]} 2. d4 {[%clk 0:03:00]}  d5 {[%clk 0:02:56]} 3. Nd2 {[%clk 0:02:58]}  dxe4 {[%clk 0:02:56]} 4. Nxe4 {[%clk 0:02:58]}  Nd7 {[%clk 0:02:57]} 5. Bd3 {[%clk 0:02:55]}  Ngf6 {[%clk 0:02:58]} 6. Qe2 {[%clk 0:02:55]}  b6 {[%clk 0:02:57]} 7. Nf3 {[%clk 0:02:48]}  Bb7 {[%clk 0:02:57]} 8. Bg5 {[%clk 0:02:44]}  Be7 {[%clk 0:02:56]} 9. Ng3 {[%clk 0:02:43]}  O-O {[%clk 0:02:54]} 10. O-O-O {[%clk 0:02:36]}  Nd5 {[%clk 0:02:51]} 11. Bd2 {[%clk 0:02:33]}  Nb4 {[%clk 0:02:48]} 12. Bxb4 {[%clk 0:02:22]}  Bxb4 {[%clk 0:02:49]} 13. Kb1 {[%clk 0:02:20]}  a5 {[%clk 0:02:45]} 14. h4 {[%clk 0:02:16]}  a4 {[%clk 0:02:42]} 15. Ne5 {[%clk 0:02:12]}  a3 {[%clk 0:02:35]} 16. Be4 {[%clk 0:02:08]}  Bxe4 {[%clk 0:02:26]} 17. Nxe4 {[%clk 0:02:09]}  Nxe5 {[%clk 0:02:03]} 18. dxe5 {[%clk 0:02:10]}  Qe7 {[%clk 0:02:03]} 19. b3 {[%clk 0:02:08]}  Rfd8 {[%clk 0:02:02]} 20. h5 {[%clk 0:02:04]}  h6 {[%clk 0:02:01]} 21. g3 {[%clk 0:02:02]}  c5 {[%clk 0:01:55]} 22. Nd6 {[%clk 0:01:41]}  c4 {[%clk 0:01:45]} 23. Nxc4 {[%clk 0:01:39]}  Qc5 {[%clk 0:01:40]} 24. Qe3 {[%clk 0:01:34]}  Qc6 {[%clk 0:01:30]} 25. c3 {[%clk 0:00:31]}  b5 {[%clk 0:01:23]} 26. cxb4 {[%clk 0:00:24]}  bxc4 {[%clk 0:01:23]} 27. Rc1 {[%clk 0:00:21]}  Qb7 {[%clk 0:01:23]} 28. Rhe1 {[%clk 0:00:18]}  Qxb4 {[%clk 0:01:17]} 29. Rxc4 {[%clk 0:00:17]}  Qb7 {[%clk 0:01:16]} 30. Rec1 {[%clk 0:00:17]}  Rab8 {[%clk 0:01:15]} 31. Qc3 {[%clk 0:00:16]}  Qg2 {[%clk 0:01:11]} 32. Qe3 {[%clk 0:00:14]}  Rb7 {[%clk 0:01:05]} 33. Rc8 {[%clk 0:00:13]}  Rd7 {[%clk 0:01:05]} 34. Rxd8+ {[%clk 0:00:12]}  Rxd8 {[%clk 0:01:06]} 35. Qf4 {[%clk 0:00:11]}  Qd5 {[%clk 0:01:03]} 36. Qe3 {[%clk 0:00:09]}  Qg2 {[%clk 0:01:02]} 37. Qf4 {[%clk 0:00:09]}  Qd5 {[%clk 0:00:57]} 38. Qe3 {[%clk 0:00:09]}  Qg2 {[%clk 0:00:57]} 1/2-1/2


[Site "https://www.chess.com"]

[Event "Titled Tuesday Blitz December 06 Late 2022"]
[White "Gasparyan, David"]
[Black "Sukandar, Irine Kharisma"]
[WhiteFideId "13311980"]
[BlackFideId "7101937"]
[WhiteElo "2391"]
[BlackElo "2301"]
[Result "1-0"]
[Round "10"]
[TimeControl "180+1"]
[Date "2022.12.07"]
[WhiteClock "0:00:04"]
[BlackClock "0:00:01"]

1. e3 {[%clk 0:03:00]}  e5 {[%clk 0:02:45]} 2. c4 {[%clk 0:03:00]}  Nf6 {[%clk 0:02:45]} 3. Qc2 {[%clk 0:02:58]}  Be7 {[%clk 0:02:44]} 4. a3 {[%clk 0:02:58]}  O-O {[%clk 0:02:44]} 5. d3 {[%clk 0:02:51]}  d5 {[%clk 0:02:43]} 6. cxd5 {[%clk 0:02:50]}  Nxd5 {[%clk 0:02:43]} 7. Nf3 {[%clk 0:02:51]}  Nc6 {[%clk 0:02:42]} 8. Be2 {[%clk 0:02:51]}  Be6 {[%clk 0:02:36]} 9. O-O {[%clk 0:02:51]}  Kh8 {[%clk 0:02:37]} 10. Nc3 {[%clk 0:02:50]}  f5 {[%clk 0:02:35]} 11. b4 {[%clk 0:02:48]}  a6 {[%clk 0:02:34]} 12. Nxd5 {[%clk 0:02:49]}  Bxd5 {[%clk 0:02:33]} 13. Bb2 {[%clk 0:02:49]}  Bf6 {[%clk 0:02:32]} 14. e4 {[%clk 0:02:48]}  Be6 {[%clk 0:02:30]} 15. Rad1 {[%clk 0:02:47]}  Qe8 {[%clk 0:02:26]} 16. d4 {[%clk 0:02:42]}  fxe4 {[%clk 0:02:14]} 17. Qxe4 {[%clk 0:02:34]}  Bb3 {[%clk 0:02:13]} 18. Rd2 {[%clk 0:02:26]}  exd4 {[%clk 0:02:11]} 19. Qf5 {[%clk 0:02:05]}  Be6 {[%clk 0:02:07]} 20. Qc5 {[%clk 0:02:05]}  Rd8 {[%clk 0:01:42]} 21. Rfd1 {[%clk 0:02:01]}  Bb3 {[%clk 0:01:39]} 22. Re1 {[%clk 0:01:50]}  Rd5 {[%clk 0:01:08]} 23. Qc1 {[%clk 0:01:50]}  Qd8 {[%clk 0:01:02]} 24. Bd3 {[%clk 0:01:45]}  Rh5 {[%clk 0:01:00]} 25. Rde2 {[%clk 0:01:38]}  Bd5 {[%clk 0:00:57]} 26. Qf4 {[%clk 0:01:31]}  Be7 {[%clk 0:00:50]} 27. Qg4 {[%clk 0:01:27]}  Bxf3 {[%clk 0:00:48]} 28. Qg3 {[%clk 0:01:13]}  Rg5 {[%clk 0:00:47]} 29. Qh3 {[%clk 0:01:09]}  Rxg2+ {[%clk 0:00:41]} 30. Kf1 {[%clk 0:01:08]}  Bxe2+ {[%clk 0:00:41]} 31. Rxe2 {[%clk 0:01:04]}  Rgxf2+ {[%clk 0:00:31]} 32. Rxf2 {[%clk 0:01:04]}  Rxf2+ {[%clk 0:00:30]} 33. Kxf2 {[%clk 0:01:05]}  Qf8+ {[%clk 0:00:30]} 34. Ke2 {[%clk 0:01:03]}  h6 {[%clk 0:00:27]} 35. Qh5 {[%clk 0:00:59]}  Qf6 {[%clk 0:00:16]} 36. Bc1 {[%clk 0:00:40]}  Qe6+ {[%clk 0:00:16]} 37. Kd1 {[%clk 0:00:38]}  Bd6 {[%clk 0:00:11]} 38. Bf5 {[%clk 0:00:17]}  Qb3+ {[%clk 0:00:11]} 39. Bc2 {[%clk 0:00:16]}  Qe6 {[%clk 0:00:09]} 40. Bf5 {[%clk 0:00:16]}  Qf6 {[%clk 0:00:03]} 41. Qe8+ {[%clk 0:00:14]}  Bf8 {[%clk 0:00:03]} 42. Qe4 {[%clk 0:00:12]}  Ne5 {[%clk 0:00:03]} 43. Bf4 {[%clk 0:00:11]}  Nc4 {[%clk 0:00:02]} 44. Ke2 {[%clk 0:00:04]}  Ne3 {[%clk 0:00:02]} 45. Bxe3 {[%clk 0:00:03]}  dxe3 {[%clk 0:00:03]} 46. Kxe3 {[%clk 0:00:04]}  Qg5+ {[%clk 0:00:03]} 47. Kf3 {[%clk 0:00:04]}  Qf6 {[%clk 0:00:03]} 48. Kg2 {[%clk 0:00:04]}  Bd6 {[%clk 0:00:02]} 49. Qe8+ {[%clk 0:00:04]}  Bf8 {[%clk 0:00:03]} 50. Qe4 {[%clk 0:00:04]}  g5 {[%clk 0:00:03]} 51. Bg4 {[%clk 0:00:03]}  Qb2+ {[%clk 0:00:03]} 52. Be2 {[%clk 0:00:02]}  Qf6 {[%clk 0:00:03]} 53. Bd3 {[%clk 0:00:03]}  Qc6 {[%clk 0:00:02]} 54. Qxc6 {[%clk 0:00:03]}  bxc6 {[%clk 0:00:03]} 55. Bxa6 {[%clk 0:00:03]}  c5 {[%clk 0:00:03]} 56. bxc5 {[%clk 0:00:03]}  Bxc5 {[%clk 0:00:03]} 57. a4 {[%clk 0:00:03]}  Kg7 {[%clk 0:00:04]} 58. Bb7 {[%clk 0:00:04]}  Kf6 {[%clk 0:00:04]} 59. a5 {[%clk 0:00:04]}  Ke5 {[%clk 0:00:05]} 60. a6 {[%clk 0:00:05]}  Kd6 {[%clk 0:00:05]} 61. Kh3 {[%clk 0:00:05]}  h5 {[%clk 0:00:04]} 62. Bc8 {[%clk 0:00:04]}  c6 {[%clk 0:00:03]} 63. Kg2 {[%clk 0:00:03]}  Kc7 {[%clk 0:00:03]} 64. Bb7 {[%clk 0:00:04]}  Bd4 {[%clk 0:00:02]} 65. h3 {[%clk 0:00:04]}  c5 {[%clk 0:00:02]} 66. Kf3 {[%clk 0:00:04]}  c4 {[%clk 0:00:02]} 67. Ke4 {[%clk 0:00:05]}  Bf2 {[%clk 0:00:02]} 68. Kf3 {[%clk 0:00:05]}  Bc5 {[%clk 0:00:02]} 69. Ke2 {[%clk 0:00:05]}  c3 {[%clk 0:00:02]} 70. Kd3 {[%clk 0:00:06]}  Bd4 {[%clk 0:00:01]} 71. Be4 {[%clk 0:00:05]}  Be5 {[%clk 0:00:01]} 72. a7 {[%clk 0:00:04]} 1-0


[Site "https://www.chess.com"]

[Event "Titled Tuesday Blitz December 06 Late 2022"]
[White "Gutkin, Ilya"]
[Black "Rorrer, Grayson"]
[WhiteFideId "16203470"]
[BlackFideId "30944996"]
[WhiteElo "2265"]
[BlackElo "2200"]
[Result "0-1"]
[Round "10"]
[TimeControl "180+1"]
[Date "2022.12.07"]
[WhiteClock "0:00:03"]
[BlackClock "0:01:40"]

1. Nf3 {[%clk 0:03:00]}  Nf6 {[%clk 0:02:59]} 2. g3 {[%clk 0:03:01]}  d5 {[%clk 0:02:59]} 3. Bg2 {[%clk 0:03:01]}  c6 {[%clk 0:03:00]} 4. c4 {[%clk 0:03:00]}  Bg4 {[%clk 0:03:01]} 5. O-O {[%clk 0:02:59]}  e6 {[%clk 0:03:00]} 6. d4 {[%clk 0:02:59]}  Be7 {[%clk 0:02:59]} 7. h3 {[%clk 0:02:59]}  Bh5 {[%clk 0:02:58]} 8. Ne5 {[%clk 0:02:57]}  Nbd7 {[%clk 0:02:57]} 9. cxd5 {[%clk 0:02:57]}  exd5 {[%clk 0:02:55]} 10. f4 {[%clk 0:02:56]}  h6 {[%clk 0:02:18]} 11. g4 {[%clk 0:02:28]}  Bg6 {[%clk 0:02:17]} 12. Nxg6 {[%clk 0:02:28]}  fxg6 {[%clk 0:02:18]} 13. Qc2 {[%clk 0:02:27]}  Kf7 {[%clk 0:02:18]} 14. Nc3 {[%clk 0:02:22]}  Re8 {[%clk 0:02:18]} 15. e4 {[%clk 0:02:17]}  dxe4 {[%clk 0:02:18]} 16. Nxe4 {[%clk 0:02:03]}  Kg8 {[%clk 0:02:17]} 17. Qb3+ {[%clk 0:01:47]}  Kh8 {[%clk 0:02:12]} 18. Qxb7 {[%clk 0:01:47]}  Nxe4 {[%clk 0:02:09]} 19. Bxe4 {[%clk 0:01:46]}  Nc5 {[%clk 0:02:09]} 20. dxc5 {[%clk 0:01:12]}  Bxc5+ {[%clk 0:02:08]} 21. Kh1 {[%clk 0:00:46]}  Rxe4 {[%clk 0:02:02]} 22. Qxc6 {[%clk 0:00:46]}  Qd3 {[%clk 0:01:41]} 23. Qxc5 {[%clk 0:00:04]}  Qxf1+ {[%clk 0:01:39]} 24. Kh2 {[%clk 0:00:04]}  Re2+ {[%clk 0:01:39]} 25. Kg3 {[%clk 0:00:05]}  Rg2+ {[%clk 0:01:38]} 26. Kh4 {[%clk 0:00:04]}  Qe1+ {[%clk 0:01:39]} 27. Qf2 {[%clk 0:00:03]}  Qxf2# {[%clk 0:01:40]} 0-1


[Site "https://www.chess.com"]

[Event "Titled Tuesday Blitz December 06 Late 2022"]
[White "Hernandez Jimenez, Alexander Andres"]
[Black "Bongo Akanga Ndjila, Barthelemy"]
[WhiteFideId "3900452"]
[BlackFideId "10609431"]
[WhiteElo "2098"]
[BlackElo "1768"]
[Result "1-0"]
[Round "10"]
[TimeControl "180+1"]
[Date "2022.12.07"]
[WhiteClock "0:01:09"]
[BlackClock "0:01:01"]

1. e4 {[%clk 0:02:55]}  c6 {[%clk 0:02:59]} 2. d4 {[%clk 0:02:53]}  d5 {[%clk 0:02:59]} 3. e5 {[%clk 0:02:54]}  Bf5 {[%clk 0:02:57]} 4. Nf3 {[%clk 0:02:54]}  e6 {[%clk 0:02:58]} 5. Be2 {[%clk 0:02:52]}  Ne7 {[%clk 0:02:57]} 6. O-O {[%clk 0:02:52]}  h6 {[%clk 0:02:58]} 7. c4 {[%clk 0:02:50]}  Nd7 {[%clk 0:02:53]} 8. cxd5 {[%clk 0:02:50]}  Nxd5 {[%clk 0:02:51]} 9. Nc3 {[%clk 0:02:50]}  g5 {[%clk 0:02:48]} 10. Nxd5 {[%clk 0:02:38]}  cxd5 {[%clk 0:02:46]} 11. Bd3 {[%clk 0:02:37]}  Bxd3 {[%clk 0:02:43]} 12. Qxd3 {[%clk 0:02:37]}  Bg7 {[%clk 0:02:43]} 13. Be3 {[%clk 0:02:35]}  Qb6 {[%clk 0:02:39]} 14. Rfc1 {[%clk 0:02:31]}  O-O {[%clk 0:02:38]} 15. Qa3 {[%clk 0:02:15]}  Rfc8 {[%clk 0:02:33]} 16. h3 {[%clk 0:02:08]}  Bf8 {[%clk 0:02:31]} 17. Qa4 {[%clk 0:02:06]}  Qd8 {[%clk 0:02:18]} 18. Nd2 {[%clk 0:02:05]}  Nb6 {[%clk 0:02:17]} 19. Qa5 {[%clk 0:02:00]}  Nc4 {[%clk 0:02:08]} 20. Nxc4 {[%clk 0:01:58]}  Rxc4 {[%clk 0:02:05]} 21. Qb5 {[%clk 0:01:44]}  Rb4 {[%clk 0:01:43]} 22. Qe2 {[%clk 0:01:41]}  a6 {[%clk 0:01:40]} 23. b3 {[%clk 0:01:34]}  Rb6 {[%clk 0:01:37]} 24. h4 {[%clk 0:01:30]}  Be7 {[%clk 0:01:31]} 25. hxg5 {[%clk 0:01:29]}  Bxg5 {[%clk 0:01:27]} 26. f4 {[%clk 0:01:28]}  Be7 {[%clk 0:01:25]} 27. Rc3 {[%clk 0:01:26]}  Rc8 {[%clk 0:01:24]} 28. Rac1 {[%clk 0:01:25]}  Rbc6 {[%clk 0:01:23]} 29. Rxc6 {[%clk 0:01:17]}  bxc6 {[%clk 0:01:16]} 30. Qh5 {[%clk 0:01:13]}  Kg7 {[%clk 0:01:12]} 31. f5 {[%clk 0:01:12]}  Bg5 {[%clk 0:01:07]} 32. f6+ {[%clk 0:01:11]}  Kf8 {[%clk 0:01:00]} 33. Bxg5 {[%clk 0:01:10]}  hxg5 {[%clk 0:01:01]} 34. Qh8# {[%clk 0:01:09]} 1-0


[Site "https://www.chess.com"]

[Event "Titled Tuesday Blitz December 06 Late 2022"]
[White "Jimenez Almeida, Luis David"]
[Black "Sargsyan, Anna M."]
[WhiteFideId "22242244"]
[BlackFideId "13308130"]
[WhiteElo "2158"]
[BlackElo "2284"]
[Result "0-1"]
[Round "10"]
[TimeControl "180+1"]
[Date "2022.12.07"]
[WhiteClock "0:01:56"]
[BlackClock "0:02:00"]

1. e4 {[%clk 0:02:58]}  c6 {[%clk 0:02:58]} 2. Nc3 {[%clk 0:02:56]}  d5 {[%clk 0:02:59]} 3. Qf3 {[%clk 0:02:55]}  Nf6 {[%clk 0:02:57]} 4. e5 {[%clk 0:02:53]}  Nfd7 {[%clk 0:02:56]} 5. d4 {[%clk 0:02:53]}  e6 {[%clk 0:02:56]} 6. Nh3 {[%clk 0:02:50]}  h6 {[%clk 0:02:51]} 7. Qg3 {[%clk 0:02:49]}  c5 {[%clk 0:02:50]} 8. dxc5 {[%clk 0:02:49]}  Nc6 {[%clk 0:02:50]} 9. f4 {[%clk 0:02:46]}  Nxc5 {[%clk 0:02:48]} 10. Bd2 {[%clk 0:02:44]}  d4 {[%clk 0:02:48]} 11. Nb5 {[%clk 0:02:36]}  Ne4 {[%clk 0:02:45]} 12. Qd3 {[%clk 0:02:35]}  Nxd2 {[%clk 0:02:45]} 13. Qxd2 {[%clk 0:02:29]}  a6 {[%clk 0:02:45]} 14. Nd6+ {[%clk 0:02:28]}  Bxd6 {[%clk 0:02:44]} 15. exd6 {[%clk 0:02:29]}  Qxd6 {[%clk 0:02:44]} 16. Bd3 {[%clk 0:02:29]}  O-O {[%clk 0:02:38]} 17. O-O-O {[%clk 0:02:24]}  e5 {[%clk 0:02:24]} 18. f5 {[%clk 0:02:20]}  Qd5 {[%clk 0:02:18]} 19. Kb1 {[%clk 0:02:12]}  e4 {[%clk 0:02:18]} 20. Nf4 {[%clk 0:02:12]}  Qxf5 {[%clk 0:02:17]} 21. g4 {[%clk 0:02:06]}  Qe5 {[%clk 0:02:04]} 22. Bc4 {[%clk 0:01:56]}  e3 {[%clk 0:02:00]} 0-1


[Site "https://www.chess.com"]